fUST/lending_fUST_20250915
["ID","MTS","AMOUNT","RATE_DAILY","PERIOD"]
[385563413,1757899843544,-157.0,0.00022188,3]
[385563415,1757899843554,-157.0,0.00022188,3]
[385563417,1757899843563,-157.0,0.00022188,3]
[385563419,1757899843573,-151.0,0.00022188,3]
[385563421,1757899843582,-157.0,0.00022188,3]
[385563423,1757899843591,-612.0,0.00022188,3]
[385563425,1757899843600,-157.0,0.00022188,3]
[385563426,1757899843610,-157.0,0.00022188,3]
[385563429,1757899843619,-157.0,0.00022188,3]
[385563431,1757899843631,-157.0,0.00022188,3]
[385563433,1757899843642,-157.0,0.00022188,3]
[385563435,1757899843651,-157.10536295,0.00022188,3]
[385563437,1757899843661,-151.0,0.00022188,3]
[385563439,1757899843670,-230.61141933,0.00022188,3]
[385563441,1757899843680,-151.0,0.00022188,3]
[385563443,1757899843689,-157.0,0.00022188,3]
[385563445,1757899843698,-157.0,0.00022188,3]
[385563447,1757899843707,-157.09641385,0.00022188,3]
[385563449,1757899843716,-157.0,0.00022188,3]
[385563451,1757899843725,-157.0,0.00022188,3]
[385563453,1757899843734,-151.0,0.00022188,3]
[385563455,1757899843743,-480.0,0.00022188,3]
[385563457,1757899843753,-2141.93,0.00022188,3]
[385563459,1757899843763,-261.90203896,0.00022188,3]
[385563461,1757899843777,-480.0,0.00022188,3]
[385563463,1757899843786,-157.0,0.00022188,3]
[385563465,1757899843795,-157.0,0.00022188,3]
[385563467,1757899843805,-480.0,0.00022188,3]
[385563469,1757899843814,-480.0,0.00022188,3]
[385563471,1757899843824,-480.0,0.00022189,3]
[385563473,1757899843833,-423.89255179,0.00022189,3]
[385563475,1757899843842,-480.0,0.00022189,3]
[385563477,1757899843851,-480.0,0.00022189,3]
[385563479,1757899843860,-480.0,0.00022189,3]
[385563481,1757899843870,-480.0,0.00022189,3]
[385563483,1757899843879,-480.0,0.00022189,3]
[385563485,1757899843888,-480.0,0.0002219,3]
[385563487,1757899843898,-480.0,0.0002219,3]
[385563489,1757899843907,-480.0,0.00022191,3]
[385563491,1757899843917,-480.0,0.00022191,3]
[385563493,1757899843926,-480.0,0.00022191,3]
[385563495,1757899843936,-480.0,0.00022191,3]
[385563498,1757899843946,-480.0,0.00022191,3]
[385563499,1757899843955,-512.73833325,0.00022191,3]
[385563501,1757899843965,-522.32,0.00022191,3]
[385563503,1757899843974,-205.59832882,0.00022191,3]
[385563506,1757899843984,-480.0,0.00022191,3]
[385563508,1757899843993,-480.0,0.00022191,3]
[385563510,1757899844002,-480.0,0.00022191,3]
[385563512,1757899844011,-577.8476211,0.00022191,3]
[385563514,1757899844021,-218.58,0.00022191,3]
[385563516,1757899844030,-1736.48,0.00022191,3]
[385563518,1757899844039,-480.0,0.00022191,3]
[385563519,1757899844048,-611.85,0.00022191,3]
[385563522,1757899844060,-662.23,0.000222,7]
[385563524,1757899844068,-1000.0,0.00022221,2]
[385563526,1757899844079,-1000.0,0.00022221,2]
[385563528,1757899844088,-500.0,0.00022221,2]
[385563530,1757899844099,-500.0,0.00022221,2]
[385563532,1757899844109,-693.09143503,0.00022221,2]
[385563534,1757899844119,-1000.0,0.00022221,2]
[385563536,1757899844128,-1000.0,0.00022221,2]
[385563538,1757899844137,-411.06922566,0.00022263,2]
[385563540,1757899844147,-300.0,0.00022354,20]
[385563542,1757899844156,-300.0,0.00022354,20]
[385563544,1757899844165,-300.0,0.00022354,20]
[385563546,1757899844175,-300.0,0.00022354,20]
[385563548,1757899844185,-300.0,0.00022354,20]
[385563550,1757899844194,-300.0,0.00022354,20]
[385563552,1757899844203,-300.0,0.00022354,20]
[385563554,1757899844213,-300.0,0.00022354,20]
[385563556,1757899844223,-300.0,0.00022354,20]
[385563558,1757899844233,-300.0,0.00022354,20]
[385563560,1757899844243,-300.0,0.00022354,20]
[385563562,1757899844252,-300.0,0.00022354,20]
[385563564,1757899844261,-300.0,0.00022354,20]
[385563566,1757899844270,-150.35357393,0.00022432,2]
[385563568,1757899844282,-500.0,0.00022432,2]
[385563570,1757899844293,-500.0,0.00022432,2]
[385563572,1757899844303,-152.37487777,0.00022462,3]
[385563574,1757899844312,-612.0,0.00022462,3]
[385563576,1757899844321,-151.0,0.00022462,3]
[385563578,1757899844330,-163.0,0.00022462,3]
[385563580,1757899844339,-160.99424439,0.00022462,3]
[385563582,1757899844348,-480.0,0.00022462,3]
[385563584,1757899844357,-480.0,0.00022462,3]
[385563586,1757899844366,-560.0,0.00022462,3]
[385563588,1757899844374,-2141.93,0.00022462,3]
[385563590,1757899844384,-480.0,0.00022462,3]
[385563592,1757899844393,-335.85334137,0.00022462,3]
[385563594,1757899844402,-480.0,0.00022462,3]
[385563596,1757899844411,-408.37286485,0.00022463,3]
[385563598,1757899844420,-480.0,0.00022463,3]
[385563600,1757899844429,-480.0,0.00022465,3]
[385563602,1757899844439,-480.0,0.00022465,3]
[385563604,1757899844448,-480.0,0.00022465,3]
[385563606,1757899844457,-480.0,0.00022465,3]
[385563608,1757899844468,-480.0,0.00022465,3]
[385563610,1757899844478,-522.32,0.00022465,3]
[385563613,1757899844490,-480.0,0.00022465,3]
[385563615,1757899844500,-480.0,0.00022465,3]
[385563617,1757899844510,-480.0,0.00022465,3]
[385563619,1757899844519,-1736.48,0.00022465,3]
[385563621,1757899844528,-480.0,0.00022465,3]
[385563623,1757899844537,-611.85,0.00022465,3]
[385563625,1757899844547,-233.1999649,0.0002251,2]
[385563626,1757899844556,-217.77739939,0.00022512,2]
[385563629,1757899844566,-160.0,0.00022512,2]
[385563630,1757899844575,-531.23217266,0.00022512,2]
[385563632,1757899844584,-300.0,0.00022632,20]
[385563635,1757899844594,-300.0,0.00022632,20]
[385563637,1757899844603,-300.0,0.00022632,20]
[385563639,1757899844612,-300.0,0.00022632,20]
[385563641,1757899844622,-300.0,0.00022632,20]
[385563643,1757899844631,-300.0,0.00022633,20]
[385563645,1757899844640,-300.0,0.00022633,20]
[385563647,1757899844649,-300.0,0.00022633,20]
[385563649,1757899844658,-300.0,0.00022633,20]
[385563651,1757899844667,-275.917795,0.000227,2]
[385563653,1757899844677,-500.0,0.0002272,2]
[385563655,1757899844686,-161.60502635,0.0002272,2]
[385563657,1757899844695,-500.0,0.0002272,2]
[385563659,1757899844704,-500.0,0.0002272,2]
[385563661,1757899844713,-500.0,0.0002272,2]
[385563662,1757899844722,-500.0,0.0002272,2]
[385563664,1757899844731,-500.0,0.0002272,2]
[385563666,1757899844740,-500.0,0.0002272,2]
[385563668,1757899844750,-500.0,0.0002272,2]
[385563670,1757899844759,-501.22003017,0.0002272,2]
[385563672,1757899844769,-500.0,0.0002272,2]
[385563674,1757899844778,-500.0,0.0002272,2]
[385563676,1757899844787,-500.0,0.00022721,2]
[385563678,1757899844796,-500.0,0.00022721,2]
[385563680,1757899844806,-541.30234502,0.00022721,2]
[385563682,1757899844815,-1000.0,0.00022721,2]
[385563684,1757899844824,-503.77118547,0.00022724,2]
[385563686,1757899844833,-612.0,0.00022736,3]
[385563688,1757899844842,-480.0,0.00022736,3]
[385563690,1757899844853,-480.0,0.00022736,3]
[385563692,1757899844863,-2141.93,0.00022736,3]
[385563694,1757899844877,-480.0,0.00022736,3]
[385563696,1757899844886,-480.0,0.00022736,3]
[385563698,1757899844895,-480.0,0.00022737,3]
[385563700,1757899844904,-480.0,0.00022739,3]
[385563702,1757899844913,-480.0,0.00022739,3]
[385563704,1757899844922,-480.0,0.00022739,3]
[385563706,1757899844933,-480.0,0.00022739,3]
[385563707,1757899844942,-480.0,0.00022739,3]
[385563709,1757899844952,-522.32,0.00022739,3]
[385563711,1757899844961,-480.0,0.00022739,3]
[385563713,1757899844970,-480.0,0.00022739,3]
[385563715,1757899844980,-480.0,0.00022739,3]
[385563717,1757899844991,-1736.48,0.00022739,3]
[385563719,1757899845001,-480.0,0.00022739,3]
[385563721,1757899845010,-611.85,0.00022739,3]
[385563723,1757899845019,-558.88274911,0.00022767,2]
[385563725,1757899845033,-1500.0,0.00022768,2]
[385563727,1757899845059,-1500.0,0.00022768,2]
[385563728,1757899845074,-500.0,0.00022768,2]
[385563730,1757899845083,-1500.0,0.00022768,2]
[385563731,1757899845094,-1000.0,0.0002298,2]
[385563733,1757899845105,-151.97578292,0.0002298,2]
[385563735,1757899845114,-217.77739939,0.00023,3]
[385563737,1757899845123,-1467.08768916,0.00023,2]
[385563739,1757899845132,-531.23217266,0.00023,3]
[385563741,1757899845141,-612.0,0.0002301,3]
[385563743,1757899845151,-480.0,0.0002301,3]
[385563745,1757899845160,-480.0,0.0002301,3]
[385563747,1757899845169,-2141.93,0.0002301,3]
[385563749,1757899845179,-480.0,0.0002301,3]
[385563751,1757899845188,-480.0,0.0002301,3]
[385563753,1757899845198,-500.0,0.0002301,2]
[385563755,1757899845207,-419.06823542,0.0002301,2]
[385563757,1757899845217,-500.0,0.0002301,2]
[385563759,1757899845226,-480.0,0.00023011,3]
[385563761,1757899845235,-480.0,0.00023013,3]
[385563763,1757899845244,-480.0,0.00023013,3]
[385563765,1757899845253,-480.0,0.00023013,3]
[385563767,1757899845262,-480.0,0.00023013,3]
[385563769,1757899845271,-480.0,0.00023013,3]
[385563771,1757899845281,-522.32,0.00023013,3]
[385563773,1757899845289,-480.0,0.00023013,3]
[385563775,1757899845298,-480.0,0.00023013,3]
[385563777,1757899845309,-480.0,0.00023013,3]
[385563779,1757899845319,-1736.48,0.00023013,3]
[385563781,1757899845328,-480.0,0.00023013,3]
[385563783,1757899845337,-611.85,0.00023013,3]
[385563785,1757899845345,-500.0,0.00023173,2]
[385563787,1757899845354,-1500.0,0.00023268,2]
[385563789,1757899845364,-612.0,0.00023284,3]
[385563790,1757899845373,-480.0,0.00023284,3]
[385563792,1757899845382,-480.0,0.00023284,3]
[385563794,1757899845392,-2141.93,0.00023284,3]
[385563796,1757899845401,-480.0,0.00023284,3]
[385563798,1757899845410,-480.0,0.00023284,3]
[385563800,1757899845420,-480.0,0.00023285,3]
[385563802,1757899845429,-480.0,0.00023287,3]
[385563804,1757899845438,-480.0,0.00023287,3]
[385563806,1757899845448,-480.0,0.00023287,3]
[385563808,1757899845457,-480.0,0.00023287,3]
[385563810,1757899845467,-480.0,0.00023287,3]
[385563812,1757899845476,-522.32,0.00023287,3]
[385563814,1757899845488,-480.0,0.00023287,3]
[385563816,1757899845498,-480.0,0.00023287,3]
[385563818,1757899845507,-480.0,0.00023287,3]
[385563820,1757899845516,-1736.48,0.00023287,3]
[385563822,1757899845526,-480.0,0.00023287,3]
[385563824,1757899845535,-611.85,0.00023287,3]
[385563826,1757899845544,-729.33,0.00023287,2]
[385563828,1757899845555,-2000.0,0.00023316,2]
[385563830,1757899845565,-2077.06427023,0.00023316,2]
[385563832,1757899845574,-178.35056221,0.00023458,2]
[385563834,1757899845583,-1500.0,0.00023527,2]
[385563836,1757899845593,-612.0,0.00023558,3]
[385563838,1757899845602,-500.0,0.00023558,2]
[385563840,1757899845611,-1000.0,0.00023558,2]
[385563842,1757899845620,-480.0,0.00023558,3]
[385563844,1757899845629,-480.0,0.00023558,3]
[385563846,1757899845638,-2141.93,0.00023558,3]
[385563848,1757899845648,-480.0,0.00023558,3]
[385563850,1757899845657,-480.0,0.00023558,3]
[385563852,1757899845666,-480.0,0.00023559,3]
[385563854,1757899845675,-480.0,0.00023561,3]
[385563856,1757899845684,-480.0,0.00023561,3]
[385563858,1757899845693,-480.0,0.00023561,3]
[385563860,1757899845702,-480.0,0.00023561,3]
[385563862,1757899845711,-480.0,0.00023561,3]
[385563864,1757899845720,-522.32,0.00023561,3]
[385563865,1757899845729,-480.0,0.00023561,3]
[385563867,1757899845738,-480.0,0.00023561,3]
[385563869,1757899845748,-480.0,0.00023561,3]
[385563871,1757899845757,-1736.48,0.00023561,3]
[385563873,1757899845766,-480.0,0.00023561,3]
[385563875,1757899845775,-611.85,0.00023561,3]
[385563889,1757899845893,-662.23,0.000236,7]
[385563891,1757899845904,-586.54967329,0.000236,2]
[385563893,1757899845914,-500.0,0.000236,2]
[385563895,1757899845923,-500.0,0.000236,2]
[385563897,1757899845932,-1000.0,0.00023721,2]
[385563899,1757899845942,-500.0,0.00023757,2]
[385563901,1757899845951,-470.12827921,0.00023757,2]
[385563903,1757899845961,-500.0,0.00023757,2]
[385563905,1757899845970,-500.0,0.00023757,2]
[385563907,1757899845979,-500.0,0.00023757,2]
[385563908,1757899845988,-500.0,0.00023757,2]
[385563910,1757899845999,-6185.96095847,0.00023764,2]
[385563912,1757899846008,-634.0,0.00023764,2]
[385563914,1757899846017,-2156.0,0.00023764,2]
[385563916,1757899846027,-409.0,0.00023764,2]
[385563918,1757899846036,-410.748,0.00023764,2]
[385563920,1757899846046,-150.0,0.00023773,2]
[385563922,1757899846055,-500.0,0.00023773,2]
[385563924,1757899846065,-500.0,0.00023773,2]
[385563926,1757899846074,-502.005819,0.00023776,2]
[385563928,1757899846084,-25246.75,0.000238,7]
[385563930,1757899846093,-160.0,0.00023806,2]
[385563932,1757899846102,-2000.0,0.00023816,2]
[385563934,1757899846112,-420.0,0.00023817,2]
[385563936,1757899846121,-180.0,0.00023817,2]
[385563938,1757899846131,-612.0,0.00023832,3]
[385563940,1757899846140,-480.0,0.00023832,3]
[385563942,1757899846149,-480.0,0.00023832,3]
[385563944,1757899846158,-2141.93,0.00023832,3]
[385563946,1757899846168,-480.0,0.00023832,3]
[385563948,1757899846177,-480.0,0.00023832,3]
[385563950,1757899846186,-599.48538064,0.00023833,3]
[385563952,1757899846195,-480.0,0.00023835,3]
[385563954,1757899846204,-480.0,0.00023835,3]
[385563956,1757899846213,-480.0,0.00023835,3]
[385563958,1757899846222,-480.0,0.00023835,3]
[385563960,1757899846232,-480.0,0.00023835,3]
[385563962,1757899846241,-522.32,0.00023835,3]
[385563963,1757899846251,-480.0,0.00023835,3]
[385563965,1757899846264,-480.0,0.00023835,3]
[385563967,1757899846284,-480.0,0.00023835,3]
[385563969,1757899846293,-1736.48,0.00023835,3]
[385563971,1757899846303,-480.0,0.00023835,3]
[385563973,1757899846313,-611.85,0.00023835,3]
[385563975,1757899846322,-1821.04939189,0.00023864,2]
[385563977,1757899846331,-1818.88,0.000239,7]
[385563979,1757899846341,-178.35056221,0.00023905,2]
[385563981,1757899846350,-500.0,0.00023916,2]
[385563983,1757899846359,-720.0,0.00023929,2]
[385563985,1757899846369,-217.77739939,0.00024,7]
[385563987,1757899846378,-531.23217266,0.00024,7]
[385563989,1757899846388,-153.01088667,0.00024,3]
[385563991,1757899846397,-558.88274911,0.00024002,2]
[385563993,1757899846406,-2000.0,0.00024075,2]
[385563995,1757899846415,-612.0,0.00024106,3]
[385563997,1757899846424,-1500.0,0.00024106,2]
[385563999,1757899846433,-404.27831562,0.00024106,3]
[385564001,1757899846442,-480.0,0.00024106,3]
[385564003,1757899846452,-2141.93,0.00024106,3]
[385564005,1757899846461,-408.73787727,0.00024106,3]
[385564007,1757899846470,-172.23710542,0.00024106,3]
[385564009,1757899846479,-299.00421802,0.00024109,3]
[385564011,1757899846491,-480.0,0.00024109,3]
[385564012,1757899846500,-480.0,0.00024109,3]
[385564014,1757899846510,-480.0,0.00024109,3]
[385564016,1757899846519,-480.0,0.00024109,3]
[385564018,1757899846528,-522.32,0.00024109,3]
[385564021,1757899846539,-480.0,0.00024109,3]
[385564022,1757899846549,-480.0,0.00024109,3]
[385564024,1757899846560,-251.31244574,0.00024109,3]
[385564026,1757899846570,-1736.48,0.00024109,3]
[385564028,1757899846580,-480.0,0.00024109,3]
[385564030,1757899846591,-611.85,0.00024109,3]
[385564032,1757899846600,-755.42001739,0.00024148,2]
[385564034,1757899846610,-1500.0,0.00024269,2]
[385564036,1757899846619,-823.817,0.0002427,2]
[385564038,1757899846628,-2000.0,0.000243,2]
[385564040,1757899846637,-2000.0,0.000243,2]
[385564042,1757899846646,-53.35553319,0.00024305,2]
[385564045,1757899846661,-946.64446681,0.00024305,2]
[385564047,1757899846670,-657.07382482,0.00024305,2]
[385564049,1757899846679,-1000.0,0.00024305,2]
[385564050,1757899846688,-1000.0,0.00024305,2]
[385564052,1757899846698,-1000.0,0.00024305,2]
[385564054,1757899846707,-300.0,0.00024321,2]
[385564056,1757899846716,-889.41044593,0.00024321,2]
[385564058,1757899846726,-1000.0,0.00024321,2]
[385564060,1757899846735,-178.35056221,0.00024353,2]
[385564062,1757899846744,-260.0,0.00024354,2]
[385564064,1757899846753,-2500.0,0.00024364,2]
[385564066,1757899846762,-500.0,0.00024373,2]
[385564068,1757899846771,-500.0,0.00024373,2]
[385564070,1757899846780,-500.0,0.00024373,2]
[385564072,1757899846789,-500.0,0.00024373,2]
[385564074,1757899846798,-500.0,0.00024373,2]
[385564076,1757899846808,-500.0,0.00024373,2]
[385564078,1757899846817,-500.0,0.00024373,2]
[385564080,1757899846827,-500.0,0.00024373,2]
[385564082,1757899846836,-500.0,0.00024373,2]
[385564084,1757899846845,-500.0,0.00024373,2]
[385564086,1757899846854,-500.0,0.00024373,2]
[385564088,1757899846864,-500.0,0.00024373,2]
[385564090,1757899846873,-501.61438964,0.00024373,2]
[385564092,1757899846882,-1947.0030452,0.00024379,2]
[385564094,1757899846891,-612.0,0.0002438,3]
[385564096,1757899846900,-480.0,0.0002438,3]
[385564098,1757899846910,-2141.93,0.0002438,3]
[385564099,1757899846920,-480.0,0.00024383,3]
[385564101,1757899846928,-480.0,0.00024383,3]
[385564103,1757899846938,-480.0,0.00024383,3]
[385564105,1757899846947,-480.0,0.00024383,3]
[385564107,1757899846957,-522.32,0.00024383,3]
[385564108,1757899846965,-525.59,0.00024383,3]
[385564109,1757899846975,-480.0,0.00024383,3]
[385564110,1757899846984,-1736.48,0.00024383,3]
[385564111,1757899846994,-480.0,0.00024383,3]
[385564112,1757899847003,-611.85,0.00024383,3]
[385564113,1757899847011,-2500.0,0.00024623,2]
[385564114,1757899847021,-55896.72788562,0.0002465,2]
[385564115,1757899847063,-1072.81722564,0.0002465,2]
[385564116,1757899847075,-3950.1057626,0.0002465,2]
[385564117,1757899847085,-16433.09065569,0.0002465,2]
[385564118,1757899847096,-5126.71557159,0.0002465,2]
[385564635,1757899852443,1356.1416427,0.00021629,2]
[385565107,1757899857240,5000.0,0.00021698,2]
[385566940,1757899880314,5000.0,0.00021698,2]
[385568362,1757899900850,1784.81287443,0.00021532,2]
[385568371,1757899903995,5000.0,0.00021698,2]
[385568379,1757899922219,16139.0,0.00030278,120]
[385568380,1757899927945,2563.48226837,0.00021697,2]
[385568386,1757899944195,208.71067982,0.000199,2]
[385568434,1757900071845,285.7198528,0.00030278,50]
[385568488,1757900299216,1504.27336461,0.00030271,120]
[385568490,1757900308280,1940.0,0.00030271,50]
[385568506,1757900494668,3000.70064966,0.0002015,2]
[385568513,1757900572899,2275.23366159,0.0002015,2]
[385568516,1757900588779,4515.36500893,0.0002015,2]
[385568517,1757900588803,484.63499107,0.0002015,2]
[385568529,1757900758152,-236.44028087,0.0002071,2]
[385568530,1757900758172,-666.0,0.00020919,2]
[385568531,1757900758191,-1157.5680237,0.00020919,2]
[385568532,1757900758209,-170.63218324,0.00021259,2]
[385568533,1757900758228,-1200.0,0.00021914,2]
[385568534,1757900758247,-300.0,0.00021914,2]
[385568535,1757900758267,-912.68533322,0.00021914,2]
[385568543,1757900825072,-287.31466678,0.00021914,2]
[385568544,1757900825092,-300.0,0.00021914,2]
[385568545,1757900825112,-300.0,0.00021914,2]
[385568546,1757900825136,-300.0,0.00021915,2]
[385568547,1757900825157,-500.0,0.00021916,2]
[385568548,1757900825178,-581.0409068,0.00021916,2]
[385568549,1757900825198,-500.0,0.00021916,2]
[385568550,1757900825218,-500.0,0.00021916,2]
[385568551,1757900825239,-500.0,0.00021916,2]
[385568552,1757900825258,-302.00976039,0.00021916,2]
[385568553,1757900825278,-519.33777138,0.00021916,2]
[385568554,1757900825300,-500.0,0.00021916,2]
[385568555,1757900825320,-500.0,0.00021916,2]
[385568556,1757900825343,-500.0,0.00021916,2]
[385568557,1757900825364,-346.96111308,0.00021916,2]
[385568558,1757900825384,-504.59955345,0.00021917,2]
[385568559,1757900825404,-498.27084158,0.00021917,2]
[385568560,1757900825425,-530.6769136,0.00021917,2]
[385568561,1757900825445,-480.0,0.00021917,2]
[385568562,1757900825466,-490.83773176,0.00021917,2]
[385568563,1757900825486,-606.72540211,0.00021917,2]
[385568564,1757900825506,-501.15257393,0.00021917,2]
[385568565,1757900825525,-480.0,0.00021917,2]
[385568566,1757900825545,-577.74,0.00021917,2]
[385568567,1757900825566,-491.56994838,0.00021917,2]
[385568568,1757900825586,-493.9636911,0.00021917,2]
[385568569,1757900825606,-502.77884194,0.00021917,2]
[385568570,1757900825626,-518.90706149,0.00021917,2]
[385568571,1757900825645,-480.0,0.00021917,2]
[385568572,1757900825669,-480.0,0.00021917,2]
[385568573,1757900825690,-498.98778681,0.00021917,2]
[385568574,1757900825713,-366.33810395,0.00021917,2]
[385568575,1757900826122,-549.63556079,0.00021917,2]
[385568576,1757900826142,-522.54841691,0.00021917,2]
[385568577,1757900826162,-480.0,0.00021917,2]
[385568578,1757900826184,-501.25940098,0.00021917,2]
[385568579,1757900826204,-492.47657708,0.00021917,2]
[385568580,1757900826225,-523.47816337,0.00021917,2]
[385568581,1757900826245,-480.0,0.00021917,2]
[385568582,1757900826266,-480.0,0.00021917,2]
[385568583,1757900826286,-480.0,0.00021917,2]
[385568584,1757900826306,-480.0,0.00021917,2]
[385568585,1757900826325,-480.0,0.00021917,2]
[385568586,1757900826478,-480.0,0.00021917,2]
[385568587,1757900826498,-496.07293861,0.00021917,2]
[385568588,1757900826519,-480.0,0.00021917,2]
[385568589,1757900826539,-505.78098515,0.00021917,2]
[385568590,1757900826560,-480.0,0.00021917,2]
[385568591,1757900826581,-493.59248022,0.00021917,2]
[385568592,1757900826601,-490.411115,0.00021917,2]
[385568593,1757900826621,-497.67488765,0.00021917,2]
[385568594,1757900826641,-480.0,0.00021917,2]
[385568595,1757900826661,-545.16,0.00021917,2]
[385568596,1757900826686,-480.0,0.00021917,2]
[385568597,1757900826706,-515.19777734,0.00021917,2]
[385568598,1757900826726,-505.33256773,0.00021917,2]
[385568599,1757900826747,-480.0,0.00021917,2]
[385568600,1757900826767,-499.98923375,0.00021917,2]
[385568601,1757900826787,-480.0,0.00021917,2]
[385568602,1757900826808,-497.39768927,0.00021917,2]
[385568603,1757900826828,-582.76143402,0.00021917,2]
[385568604,1757900826852,-494.31391949,0.00021917,2]
[385568605,1757900826879,-480.0,0.00021917,2]
[385568606,1757900826901,-498.9887691,0.00021917,2]
[385568607,1757900826923,-10585.41552735,0.00021933,2]
[385568608,1757900826950,-421.26865916,0.00022072,2]
[385568609,1757900826971,-480.0,0.00022172,3]
[385568610,1757900826992,-1432.66,0.00022172,3]
[385568611,1757900827014,-480.0,0.00022172,3]
[385568612,1757900827036,-480.0,0.00022172,3]
[385568613,1757900827055,-480.0,0.00022172,3]
[385568614,1757900827076,-32.59359555,0.00022172,3]
[385568616,1757900839081,-480.0,0.00021917,2]
[385568617,1757900839102,-480.0,0.00021917,2]
[385568618,1757900839123,-378.26382,0.00022172,3]
[385568630,1757900945128,-300.0,0.00021916,2]
[385568631,1757900945149,-480.0,0.00021917,2]
[385568632,1757900945169,-489.14508286,0.00021917,2]
[385568633,1757900945191,-142.05491714,0.00021917,2]
[385568669,1757901032245,-300.0,0.00021916,2]
[385568671,1757901032255,-300.0,0.00021916,2]
[385568673,1757901032265,-300.0,0.00021916,2]
[385568675,1757901032274,-300.0,0.00021916,2]
[385568677,1757901032283,-1200.0,0.00021916,2]
[385568679,1757901032294,-337.94508286,0.00021917,2]
[385568681,1757901032303,-293.54754203,0.00021917,2]
[385568683,1757901032312,-480.0,0.00021917,2]
[385568685,1757901032321,-502.8029541,0.00021917,2]
[385568688,1757901032331,-523.8950244,0.00021917,2]
[385568690,1757901032340,-592.59200534,0.00021917,2]
[385568691,1757901032350,-480.0,0.00021917,2]
[385568692,1757901032359,-567.28372527,0.00021917,2]
[385568693,1757901032368,-480.0,0.00021917,2]
[385568694,1757901032377,-480.0,0.00021917,2]
[385568695,1757901032386,-490.0817586,0.00021917,2]
[385568696,1757901032395,-1205.42,0.00021917,2]
[385568697,1757901032404,-480.0,0.00021917,2]
[385568698,1757901032413,-480.0,0.00021917,2]
[385568699,1757901032422,-499.14376993,0.00021917,2]
[385568700,1757901032431,-480.0,0.00021917,2]
[385568701,1757901032440,-480.0,0.00021917,2]
[385568702,1757901032449,-522.45,0.00021917,2]
[385568703,1757901032458,-171.91805992,0.00021917,2]
[385568704,1757901032467,-5496.16860164,0.00022,2]
[385568825,1757901038639,-480.0,0.00021917,2]
[385568826,1757901038649,-1255.27623109,0.00022,2]
[385568827,1757901038658,-1200.0,0.00022189,2]
[385568828,1757901038667,-434.05817986,0.0002219,3]
[385568829,1757901039257,-1225.44182014,0.0002219,3]
[385568830,1757901039266,-434.47069859,0.0002219,3]
[385568875,1757901043364,-509.76268323,0.00021917,2]
[385568876,1757901043375,-6.16240799,0.00021917,2]
[385568877,1757901043386,-473.83759201,0.00021917,2]
[385568878,1757901043395,-480.0,0.00021917,2]
[385568879,1757901043404,-64.70414525,0.0002219,3]
[385568880,1757901043413,-480.0,0.0002219,3]
[385568881,1757901043422,-249.92369289,0.0002219,3]
[385568882,1757901043431,-480.0,0.0002219,3]
[385568883,1757901043441,-260.77345701,0.0002219,2]
[385568884,1757901043450,-215.4504493,0.00022191,3]
[385568885,1757901043459,-480.0,0.00022191,3]